Workbook

Sheet Cat1
A1: Cat Bond:
B2: Definition: | C2: An insurance linked security that is a debt obligation structured just like a US Treasury bond.
C3: A borrower raises capital in exchange for a security that promises future interest and principal payments according to s schedule.
C4: If a specified event happens the bond defaults and the bond holders get nothing.
B5: Example: | C5: (Stylized)
C6: In July 2020, Swiss Re issued | F6: 240,000,000 | G6: in 5-year Cat bonds on named hurricane risk in Florida.
C7: The bonds were sold at par with a coupon of | G7: 0.105
C9: Let's suppose that the issue date was July 31, 2020.
C10: In this case the cash flow time line looks like:
C11: Date | D11: Jan 31 2021 | E11: 2021-07-31 | F11: Jan 31 2022 | G11: 2022-07-31 | H11: Jan 31 2023 | I11: July 31 2023 | J11: Jan 31 2024 | K11: July 31 2024 | L11: Jan 31 2025 | M11: July 31 2025
C12: Time (Yrs): | D12: 0.5 | E12: 1 | F12: 1.5 | G12: 2 | H12: 2.5 | I12: 3 | J12: 3.5 | K12: 4 | L12: 4.5 | M12: 5
C13: Cash Flow: | D13: =50*$G$7 -> 5.25 | E13: =50*$G$7 -> 5.25 | F13: 5.25 | G13: 5.25 | H13: 5.25 | I13: 5.25 | J13: 5.25 | K13: 5.25 | L13: 5.25 | M13: =100*(1+G7/2) -> 105.25
C15: Price: | D15: 100 | E15: (% of par)
C16: ytm: | D16: No calculations needed. A bond selling at par on its issue date or coupon payment date has a ytm equal to its coupon rate -- on a compounding basis that matches the frequency of payments (semi-annual in this case).
D17: =G7 -> 0.105 | E17: on a bond equivalent basis
D18: =LN((1+G7/2)^2) -> 0.1023365731 | E18: on a cc basis.
C19: Verify:
C20: df: | D20: =EXP(-D12*$D$18) -> 0.9501187648 | E20: =EXP(-E12*$D$18) -> 0.9027256673 | F20: 0.857696596 | G20: 0.8149136304 | H20: 0.774264732 | I20: 0.7356434508 | J20: 0.6989486469 | K20: 0.664084225 | L20: 0.6309588837 | M20: 0.5994858752
C21: PV: | D21: =D13*D20 -> 4.988123515 | E21: =E13*E20 -> 4.739309753 | F21: 4.502907129 | G21: 4.27829656 | H21: 4.064889843 | I21: 3.862128117 | J21: 3.669480396 | K21: 3.486442182 | L21: 3.312534139 | M21: 63.09588837
C22: =SUM(D21:M21) -> 100
C24: At this same time the cc ytm on a 5-year US Treasury note is: | H24: 0.0045 | I24: (45 basis points)
A27: We can use this market information combined with knowledge of arbitrage pricing to ascertain what the world's best models and minds believe to be the probability of a serius named hurricane hitting the east coast of Florida over the next 5 years.
B29: First, we assume that the risk is constant over the 5 years, and continuous.
B30: We use the hazard rate to model this probability. For example if the hazard rate is | H30: 0.03 | I30: (roughly a 3% chance of occurring each year), then we can buid the following table describing the probability of the named hurricance damage occurring (for the first time):
C31: The survival probability is the probability that the event has not occurred prior to time tis exp(h*T), so the probability that the event has occurred before time T is 1 - exp(-h*T)
A32: Hazard rate: | B32: 0.09783657315
C34: Date | D34: Jan 31 2021 | E34: 2021-07-31 | F34: Jan 31 2022 | G34: 2022-07-31 | H34: Jan 31 2023 | I34: July 31 2023 | J34: Jan 31 2024 | K34: July 31 2024 | L34: Jan 31 2025 | M34: July 31 2025
C35: Time (Yrs): | D35: 0.5 | E35: 1 | F35: 1.5 | G35: 2 | H35: 2.5 | I35: 3 | J35: 3.5 | K35: 4 | L35: 4.5 | M35: 5
B36: Survival Probability: | D36: =EXP(-$B$32*D35) -> 0.9522589389 | E36: =EXP(-$B$32*E35) -> 0.9067970866 | F36: 0.8635056315 | G36: 0.8222809563 | H36: 0.7830243909 | I36: 0.7456419756 | J36: 0.7100442365 | K36: 0.6761459712 | L36: 0.643866045 | M36: 0.6131271968
B37: Periodic default probability: | D37: =1-D36 -> 0.04774106114 | E37: =D36-E36 -> 0.04546185222 | F37: =E36-F36 -> 0.04329145516 | G37: 0.04122467515 | H37: 0.03925656541 | I37: 0.03738241532 | J37: 0.03559773915 | K37: 0.03389826531 | L37: 0.03227992615 | M37: 0.03073884822 | N37: =SUM(D37:M37) -> 0.3868728032 | O37: =M36+N37 -> 1.000000000
B38: Promised Cash Flow: | D38: =50*$D$17 -> 5.25 | E38: =50*$D$17 -> 5.25 | F38: 5.25 | G38: 5.25 | H38: 5.25 | I38: 5.25 | J38: 5.25 | K38: 5.25 | L38: 5.25 | M38: =100*(1+D17/2) -> 105.25
B39: Expected value of CF: | D39: =D36*D38 -> 4.999359429 | E39: =E36*E38 -> 4.760684705 | F39: 4.533404565 | G39: 4.316975021 | H39: 4.110878052 | I39: 3.914620372 | J39: 3.727732241 | K39: 3.549766349 | L39: 3.380296736 | M39: 64.53163746
B40: df (@ Treasury ytm): | D40: =EXP(-$H$24*D35) -> 0.9977525294 | E40: =EXP(-$H$24*E35) -> 0.9955101098 | F40: 0.9932727301 | G40: 0.9910403788 | H40: 0.9888130446 | I40: 0.9865907163 | J40: 0.9843733826 | K40: 0.9821610324 | L40: 0.9799536543 | M40: =EXP(-$H$24*M35) -> 0.9777512372
B41: PV of Expected CF: | D41: =D39*D40 -> 4.988123515 | E41: =E39*E40 -> 4.739309753 | F41: 4.502907129 | G41: 4.27829656 | H41: 4.064889843 | I41: 3.862128117 | J41: 3.669480396 | K41: 3.486442182 | L41: 3.312534139 | M41: 63.09588837
C42: =SUM(D41:M41) -> 100
A44: We can use Solver to ascertain the hazard rate that reconciles the market valuation with the promised future cash flows and Treasury note ytm.
A45: Criterion: | B45: =(C42-C22)^2 -> 8.077935669e-28 | C45: we want to minimize this criterion by changing the hazard rate in Cell B32. | I45: We find that the hazard rate that explains the market valuation is roughly 9.78%.
B46: This means that the probability that there will be a major named hurricane on the east coast of Florida over the next 5 years is around 39%.
A48: Next issue:
B49: Why should we discount the expected future cash flows at the risk free rate (i.e., we use the Treasury note's ytm). These cash flows are risky.
B51: We can simulate what happens to use if we buy the bond using Monte Carlo.
B52: We need a random draw to characterize whether a hurrciane in east Fla occurs that is consistent with the hazard model..
A54: I'll introduce the Monte Carlo and its application here using VBA. In a sequence of subroutines.
A55: The first subroutine in Module 1 simply evaluates one possible outcome for 1 bond. Default happens in a period | I55: =1-D36 -> 0.04774106114 | J55: of the time (roughly 4.8% of the time). This is the probability of default conditional on not having defaulted to that time.
A56: This subroutine reads the following input from this worksheet:
A57: Cat Bond Term: | C57: 5
A58: Cat bond coupon rate: | C58: =G7 -> 0.105
A59: continuous hazard: | C59: =B32 -> 0.09783657315
A61: and produces a single outcome for the cash flows each period from the bond:
C62: Time since issue date (Yrs): | E62: 0.5 | F62: 1 | G62: 1.5 | H62: 2 | I62: 2.5 | J62: 3 | K62: 3.5 | L62: 4 | M62: 4.5 | N62: 5
E63: 5.25 | F63: 5.25 | G63: 0 | H63: 0 | I63: 0 | J63: 0 | K63: 0 | L63: 0 | M63: 0 | N63: 0
A66: So the next thing to do is to build a portfolio. | D66: This is in Module 2. It evauates the period-by-period cash flows on a portfolio containing the number of bonds in Cell C71 ($100 invested in each), as well as the number of bonds that have not yet defaulted at each point in the timeline.
A67: We assume that the bonds have identical terms, coupon, and hazard rates.
A71: Number of Bonds: | C71: 10,000,000 | D71: (100 invested in each) | F71: Since all bonds have a bond equivalent ytm = coupon rate (i.e., they're selling at par), the total initial investment is: | O71: =C71*100 -> 1,000,000,000
B74: Time (Yrs) Relative to Issue Date: | E74: 0.5 | F74: 1 | G74: 1.5 | H74: 2 | I74: 2.5 | J74: 3 | K74: 3.5 | L74: 4 | M74: 4.5 | N74: 5
C75: Cash Flows received: | E75: 49996563.75 | F75: 47609698.5 | G75: 45334632 | H75: 43172445.75 | I75: 41109594.75 | J75: 39148236.75 | K75: 37278176.25 | L75: 35496909 | M75: 33806220 | N75: 645339848.8
B76: Number of bonds not in default: | E76: 9523155 | F76: 9068514 | G76: 8635168 | H76: 8223323 | I76: 7830399 | J76: 7456807 | K76: 7100605 | L76: 6761316 | M76: 6439280 | N76: 6131495 | O76: <--- The value in Cell N76 is the number of bonds from the original portfolio that
A77: Number of bonds that defaulted during the previous 6 months: | E77: =C71-E76 -> 476,845 | F77: =E76-F76 -> 454,641 | G77: =F76-G76 -> 433,346 | H77: 411,845 | I77: 392,924 | J77: 373,592 | K77: 356,202 | L77: 339,289 | M77: 322,036 | N77: 307,785 | O77: did not default over their terms. We expected this to be: | T77: =EXP(-C59*N74)*C71 -> 6131271.968
C78: df (@Treas ytm): | E78: =EXP(-$H$24*E74) -> 0.9977525294 | F78: =EXP(-$H$24*F74) -> 0.9955101098 | G78: 0.9932727301 | H78: 0.9910403788 | I78: 0.9888130446 | J78: 0.9865907163 | K78: 0.9843733826 | L78: 0.9821610324 | M78: 0.9799536543 | N78: 0.9777512372
B79: PV of cash flows (@Treas ytm): | E79: =E75*E78 -> 49884197.94 | F79: =F75*F78 -> 47395936.18 | G79: 45029653.69 | H79: 42785636.99 | I79: 40649703.55 | J79: 38623286.94 | K79: 36695644.45 | L79: 34863680.79 | M79: 33128528.83 | N79: 630981835.5
D80: =SUM(E79:N79) -> 1,000,038,104.9
A81: When we run the subroutine, in Module 2 associated with the workbook, we get one draw from nature playing out over the 5-year horizon, and affecting all of the bonds in this portfolio.
A82: The point is that one draw we may get a discounted present value of slightly less than the market value of the portfolio and In another draw we may get slightly more.
A83: It takes about 26 seconds on my laptop to get one draw. (Running on a Mac with no patallel processing).
A88: The final VBA code uses Monte Carlo to run through multiple possible future outcomes, and assess the expected present value and the standard deviation of that value:
A89: We will run many draws, and keep the discounted PV -- using the US Treasury cc ytm to discount--
A90: This subroutine is in Module 3. One lesson from these subroutines is the value of ``Do Loops'' in programming.
A91: NDRAWS | C91: 5
A92: cc Treasury ytm: | C92: 0.0045
C96: 6131467 | D96: 1,000,029,255
C97: 6131175 | D97: 999,988,872
C98: 6131685 | D98: 1,000,048,763
C99: 6131516 | D99: 1,000,003,772
C100: 6131008 | D100: 999,953,199
W1089: =AVERAGE(#REF!) -> 
A1091: Average present value: | C1091: =AVERAGE(#REF!) -> 
A1092: std dev of present value: | C1092: =STDEV(#REF!) -> 
A1093: Median present value: | C1093: =MEDIAN(#REF!) -> 
